Name,Sub Group,Service Area,Expense Type,Narrative,Date,Transaction No,Amount,Supplier Name,Supplier ID,Period,Year
Allerdale Borough Council,XC02,Holding and Control Accounts,Capital Project Retentions,Holding Accounts General - Expenditure,02/06/2010,435887,3124.10,T ARMSTRONG - CONSTRUCTION    ,C00003,3,2010
Allerdale Borough Council,DE01,Supplies and Services,Customer Contact Centre,Consultants Fees,02/06/2010,435889,1325.75,DIGITERATI LTD                ,A00883,3,2010
Allerdale Borough Council,DA02,Supplies and Services,Shared IT,Equipment Repair & Maintenance,09/06/2010,435890,7645.04,XEROX (UK) LTD                ,A00782,3,2010
Allerdale Borough Council,DH10,Supplies and Services,Shared IT,Software Licences,16/06/2010,435894,869.19,PHOENIX SOFTWARE LTD          ,A00229,3,2010
Allerdale Borough Council,DH10,Supplies and Services,Shared IT,Software Licences,16/06/2010,435895,16085.55,PHOENIX SOFTWARE LTD          ,A00229,3,2010
Allerdale Borough Council,DA02,Supplies and Services,Shared IT,Equipment Repair & Maintenance,16/06/2010,435896,1782.77,XEROX (UK) LTD                ,A00782,3,2010
Allerdale Borough Council,DH02,Supplies and Services,Shared IT,Hardware Maintenance,16/06/2010,435897,1334.20,VISTORM LTD                   ,A01227,3,2010
Allerdale Borough Council,DE01,Supplies and Services,Derwent Forest - Leases,Consultants Fees,16/06/2010,435898,10446.09,CAPITA SYMONDS LTD            ,A00252,3,2010
Allerdale Borough Council,DA01,Supplies and Services,Recycling,Equipment Costs,16/06/2010,435911,9562.00,CRAEMER UK LTD                ,A01016,3,2010
Allerdale Borough Council,DK99,Supplies and Services,Leisure - Arts Development,Promotions General,02/06/2010,435914,15000.00,KENDAL ARTS INTERNATIONAL LTD ,A00719,3,2010
Allerdale Borough Council,DH11,Supplies and Services,Shared IT,Software Maintenance,02/06/2010,435918,3093.96,PITNEY BOWES MAPINFO          ,A00208,3,2010
Allerdale Borough Council,XC02,Holding and Control Accounts,Busy Bees Childcare Scheme,Holding Accounts General - Expenditure,02/06/2010,435919,553.00,BUSY BEES CHILDCARE VOUCHERS  ,A00991,3,2010
Allerdale Borough Council,EA10,Third Party Payments,Finance and Accounting,Audit Commission,02/06/2010,435924,9542.00,AUDIT COMMISSION              ,A00002,3,2010
Allerdale Borough Council,EA04,Third Party Payments,Recycling,Horticulture,02/06/2010,435929,1467.60,GREENSTAR ENVIRONMENTAL LTD   ,A00447,3,2010
Allerdale Borough Council,DG02,Supplies and Services,Shared IT,Line Rentals,02/06/2010,435930,2680.25,BT - STOCKPORT                ,A00967,3,2010
Allerdale Borough Council,AE01,Employee related expenditure,Corporate Recruitment,Advertising vacancies,02/06/2010,435934,4235.00,CUMBRIA CC - 3C STUDIO ONLY   ,A00070,3,2010
Allerdale Borough Council,DH10,Supplies and Services,Shared IT,Software Licences,16/06/2010,435939,6756.39,PHOENIX SOFTWARE LTD          ,A00229,3,2010
Allerdale Borough Council,DH11,Supplies and Services,Shared IT,Software Maintenance,16/06/2010,435944,10450.00,VISTORM LTD                   ,A01227,3,2010
Allerdale Borough Council,EA04,Third Party Payments,Recycling,Horticulture,09/06/2010,435945,994.50,Redacted information - included personal information ,C00023,3,2010
Allerdale Borough Council,DH10,Supplies and Services,Shared IT,Software Licences,09/06/2010,435948,3060.39,LOCAL GOVERNMENT INFORMATION  ,A00251,3,2010
Allerdale Borough Council,DE08,Supplies and Services,Environmental Health - Pay Groups,Subscriptions,02/06/2010,435956,595.00,ENVIRONMENTAL PROTECTION UK   ,A00812,3,2010
Allerdale Borough Council,DE01,Supplies and Services,Finance and Accounting,Consultants Fees,02/06/2010,435963,2658.00,CARLISLE CITY COUNCIL         ,A00161,3,2010
Allerdale Borough Council,EA04,Third Party Payments,Recycling,Horticulture,02/06/2010,435964,4823.20,THOMPSONS PLANT HIRE LTD      ,A00262,3,2010
Allerdale Borough Council,EA04,Third Party Payments,Recycling,Horticulture,02/06/2010,435965,757.00,THOMPSONS PLANT HIRE LTD      ,A00262,3,2010
Allerdale Borough Council,EA04,Third Party Payments,Recycling,Horticulture,02/06/2010,435966,3041.00,THOMPSONS PLANT HIRE LTD      ,A00262,3,2010
Allerdale Borough Council,EA04,Third Party Payments,Recycling,Horticulture,02/06/2010,435967,1201.60,THOMPSONS PLANT HIRE LTD      ,A00262,3,2010
Allerdale Borough Council,DD05,Supplies and Services,AONB Silloth,Use of External Printers,02/06/2010,435969,1679.00,Redacted information - included personal information ,A00513,3,2010
Allerdale Borough Council,DE99,Supplies and Services,Out of Hours Telephones,Other Fees,02/06/2010,435972,930.05,ORBIS MONITORING SERVICES     ,A00679,3,2010
Allerdale Borough Council,DD03,Supplies and Services,Flood Recovery Grant,Publications and Periodicals,16/06/2010,435976,3742.20,CUMBRIAN NEWSPAPERS LIMITED   ,A00869,3,2010
Allerdale Borough Council,DH12,Supplies and Services,Shared IT,Software Development,23/06/2010,435977,850.00,NORTHGATE LAND & PROP SOLU LTD,A00213,3,2010
Allerdale Borough Council,AF01,Employee related expenditure,Training,External Courses & Seminar Fees,16/06/2010,435979,1500.00,GA TRAINING                   ,A00137,3,2010
Allerdale Borough Council,EA04,Third Party Payments,Bereavement Services,Horticulture,02/06/2010,435980,16029.66,ISS WATERERS LANDSCAPE        ,C00044,3,2010
Allerdale Borough Council,AF01,Employee related expenditure,Training,External Courses & Seminar Fees,16/06/2010,435990,3000.00,GA TRAINING                   ,A00137,3,2010
Allerdale Borough Council,AF02,Employee related expenditure,Training,Post Entry Training,02/06/2010,435993,750.00,INSTITUTE OF ACOUSTICS        ,A01259,3,2010
Allerdale Borough Council,FA99,Transfer Payments,Flood Recovery Grant,General,02/06/2010,435997,50000.00,KESWICK T.C.           ,X00080,3,2010
Allerdale Borough Council,XB01,Holding and Control Accounts,Derwent and Solway,Control Accounts General,30/06/2010,436000,8768.16,DERWENT & SOLWAY HOUSING ASSO ,A00219,3,2010
Allerdale Borough Council,XB01,Holding and Control Accounts,Derwent and Solway,Control Accounts General,30/06/2010,436001,6805.66,DERWENT & SOLWAY HOUSING ASSO ,A00219,3,2010
Allerdale Borough Council,QF05,Capital Expenditure,Housing Act 1989 - Facilities for Disabled,To Private Individuals,02/06/2010,436002,3085.00,Redacted information - included personal information ,X00188,3,2010
Allerdale Borough Council,QF04,Capital Expenditure,T.H.I.,To Private Individuals - General,02/06/2010,436003,10816.17,Redacted information - included personal information ,X00187,3,2010
Allerdale Borough Council,QF04,Capital Expenditure,T.H.I.,To Private Individuals - General,02/06/2010,436004,5761.78,N J HODGSON CO LTD     ,X00168,3,2010
Allerdale Borough Council,FA01,Transfer Payments,Flood Recovery Grant,Private Individuals,02/06/2010,436011,6500.00,Redacted information - included personal information ,M00832,3,2010
Allerdale Borough Council,EA15,Third Party Payments,Grants to Voluntary Organisations,Voluntary Organisations,02/06/2010,436012,16250.00,CITIZENS ADVICE BUREAU        ,A01181,3,2010
Allerdale Borough Council,DH02,Supplies and Services,Shared IT,Hardware Maintenance,23/06/2010,436901,1140.00,PARALOGIC LTD                 ,A00102,3,2010
Allerdale Borough Council,EA04,Third Party Payments,Recycling,Horticulture,09/06/2010,436902,3919.60,D A HARRISON LTD                 ,A00264,3,2010
Allerdale Borough Council,DE01,Supplies and Services,Homelessness,Consultants Fees,16/06/2010,436904,918.75,MORGAN HUNT PUBLIC SECTOR LTD ,A00725,3,2010
Allerdale Borough Council,DD01,Supplies and Services,Shared IT,General stationery,23/06/2010,436906,589.25,XEROX OFFICE SUPPLIES         ,A00366,3,2010
Allerdale Borough Council,QF05,Capital Expenditure,Housing Act 1989 ,To Private Individuals,09/06/2010,436911,12525.50,MARK LISTER ROOFING CON,X00189,3,2010
Allerdale Borough Council,EA04,Third Party Payments,Recycling,Horticulture,09/06/2010,436920,2166.78,WASTE RECYCLING LTD T/A ALCO  ,A00185,3,2010
Allerdale Borough Council,DA01,Supplies and Services,Recycling,Equipment Costs,23/06/2010,436921,6781.44,CRAEMER UK LTD                ,A01016,3,2010
Allerdale Borough Council,DA01,Supplies and Services,Recycling,Equipment Costs,23/06/2010,436926,6746.12,CRAEMER UK LTD                ,A01016,3,2010
Allerdale Borough Council,DE01,Supplies and Services,Transformation,Consultants Fees,09/06/2010,436932,2918.40,NORTH WEST EMPLOYERS          ,A00139,3,2010
Allerdale Borough Council,DE01,Supplies and Services,Planning and Development ,Consultants Fees,09/06/2010,436933,5498.26,CAPITA SYMONDS - ARCHITECTURE ,A00774,3,2010
Allerdale Borough Council,DF01,Supplies and Services,Revenue,Postage,09/06/2010,436934,578.50,ROYAL MAIL LETTERS     ,X00021,3,2010
Allerdale Borough Council,DF01,Supplies and Services,Revenue,Postage,09/06/2010,436935,830.83,ROYAL MAIL LETTERS     ,X00021,3,2010
Allerdale Borough Council,DD03,Supplies and Services,Flood Recovery Grant,Publications and Periodicals,09/06/2010,436936,1702.13,WASHINGTON CENTRAL HOTEL      ,A00153,3,2010
Allerdale Borough Council,DE01,Supplies and Services,Environmental Protection,Consultants Fees,16/06/2010,436939,69212.00,JACOBS ENGINEERING            ,A00174,3,2010
Allerdale Borough Council,BD08,Premises related expenditure,Corporate Property,Water & Sewage,09/06/2010,436942,505.89,UNITED UTILITIES ,X00011,3,2010
Allerdale Borough Council,BA01,Premises related expenditure,Corporate Property,External Maintenance & Decoration,09/06/2010,436944,2050.00,CONTRACT FENCING LTD          ,A00975,3,2010
Allerdale Borough Council,AF01,Employee related expenditure,Training,External Courses & Seminar Fees,16/06/2010,436945,2150.00,Redacted information - included personal information ,A01247,3,2010
Allerdale Borough Council,DI03,Supplies and Services,Members Services,"Courses, Training, Seminars",09/06/2010,436951,519.00,LOCAL GOVERNEMENT ASSOC       ,A00909,3,2010
Allerdale Borough Council,BD02,Premises related expenditure,Corporate Property,Electricity,09/06/2010,436952,1590.75,SOUTHERN ELECTRIC - POB,X00018,3,2010
Allerdale Borough Council,DG04,Supplies and Services,Shared IT,Mobile Phones,09/06/2010,436953,1645.67,VODAFONE CORPORATE LTD        ,A00551,3,2010
Allerdale Borough Council,DI03,Supplies and Services,Members Services,"Courses, Training, Seminars",09/06/2010,436954,519.00,LOCAL GOVERNEMENT ASSOC       ,A00909,3,2010
Allerdale Borough Council,DI03,Supplies and Services,Members Services,"Courses, Training, Seminars",09/06/2010,436955,519.00,LOCAL GOVERNEMENT ASSOC       ,A00909,3,2010
Allerdale Borough Council,AD01,Employee related expenditure,Benefits,Agency Staff Costs,16/06/2010,436958,1103.71,EDEN BROWN                    ,C00050,3,2010
Allerdale Borough Council,DI03,Supplies and Services,Members Services,"Courses, Training, Seminars",09/06/2010,436960,519.00,LOCAL GOVERNEMENT ASSOC       ,A00909,3,2010
Allerdale Borough Council,DE07,Supplies and Services,Land Charges Service,Searches,23/06/2010,436962,2134.20,CAPITA SYMONDS - ARCHITECTURE ,A00774,3,2010
Allerdale Borough Council,DK01,Supplies and Services,Planning and Development ,Statutory Notices,09/06/2010,436964,1930.53,CUMBRIA CC - 3C STUDIO ONLY   ,A00070,3,2010
Allerdale Borough Council,AE02,Employee related expenditure,Corporate Recruitment,Interview expenses,09/06/2010,436965,2821.71,CUMBRIA CC - 3C STUDIO ONLY   ,A00070,3,2010
Allerdale Borough Council,DK01,Supplies and Services,Planning and Development ,Statutory Notices,09/06/2010,436966,1144.96,CUMBRIA CC - 3C STUDIO ONLY   ,A00070,3,2010
Allerdale Borough Council,EA14,Third Party Payments,Trade Waste,Other Local Authorities,24/05/2010,436967,83847.72,CUMBRIA COUNTY COUNCIL        ,A00920,3,2010
Allerdale Borough Council,DD05,Supplies and Services,Communications and Marketing,Use of External Printers,09/06/2010,436980,2485.00,CUMBRIAN NEWSPAPERS LTD       ,A01200,3,2010
Allerdale Borough Council,DD01,Supplies and Services,Licensing Service,General stationery,09/06/2010,436987,518.80,MOTIF SIGN & DISPLAY          ,A00158,3,2010
Allerdale Borough Council,BD08,Premises related expenditure,Corporate Property,Water & Sewage,09/06/2010,436993,19460.78,UNITED UTILITIES ,X00011,3,2010
Allerdale Borough Council,BA03,Premises related expenditure,Coastal Protection and Inland Flooding,Grounds,16/06/2010,437016,556.80,Redacted information - included personal information ,C00023,3,2010
Allerdale Borough Council,DE01,Supplies and Services,Benefits,Consultants Fees,09/06/2010,437018,17250.00,NORTHGATE MANAGED SERVICES    ,A00849,3,2010
Allerdale Borough Council,DE08,Supplies and Services,Finance and Accounting - Pay Groups,Subscriptions,09/06/2010,437021,1250.00,CIPFA                         ,A00572,3,2010
Allerdale Borough Council,AD01,Employee related expenditure,Benefits,Agency Staff Costs,23/06/2010,437025,1026.00,EDEN BROWN                    ,C00050,3,2010
Allerdale Borough Council,AD01,Employee related expenditure,Benefits,Agency Staff Costs,23/06/2010,437026,1161.00,EDEN BROWN                    ,C00050,3,2010
Allerdale Borough Council,AD01,Employee related expenditure,Benefits,Agency Staff Costs,23/06/2010,437027,1103.71,EDEN BROWN                    ,C00050,3,2010
Allerdale Borough Council,AD01,Employee related expenditure,Benefits,Agency Staff Costs,09/06/2010,437028,648.00,EDEN BROWN                    ,C00050,3,2010
Allerdale Borough Council,AD01,Employee related expenditure,Benefits,Agency Staff Costs,09/06/2010,437029,1080.00,EDEN BROWN                    ,C00050,3,2010
Allerdale Borough Council,AD01,Employee related expenditure,Benefits,Agency Staff Costs,09/06/2010,437030,999.00,EDEN BROWN                    ,C00050,3,2010
Allerdale Borough Council,AD01,Employee related expenditure,Benefits,Agency Staff Costs,09/06/2010,437031,1080.00,EDEN BROWN                    ,C00050,3,2010
Allerdale Borough Council,AD01,Employee related expenditure,Benefits,Agency Staff Costs,09/06/2010,437032,999.00,EDEN BROWN                    ,C00050,3,2010
Allerdale Borough Council,AD01,Employee related expenditure,Benefits,Agency Staff Costs,16/06/2010,437033,1080.00,EDEN BROWN                    ,C00050,3,2010
Allerdale Borough Council,AD01,Employee related expenditure,Benefits,Agency Staff Costs,16/06/2010,437034,972.00,EDEN BROWN                    ,C00050,3,2010
Allerdale Borough Council,DE01,Supplies and Services,Customer Services Directorate - Pay Groups,Consultants Fees,09/06/2010,437037,5860.80,DIGITERATI LTD                ,A00883,3,2010
Allerdale Borough Council,QD01,Capital Expenditure,Derwentside Renewal Works,Architects Fees,09/06/2010,437039,8500.00,MICHAEL DYSON ASSOCIATES LTD  ,A01038,3,2010
Allerdale Borough Council,QD01,Capital Expenditure,Derwentside Renewal Works,Architects Fees,30/06/2010,437040,4607.14,MICHAEL DYSON ASSOCIATES LTD  ,A01038,3,2010
Allerdale Borough Council,DM99,Supplies and Services,Elections,General,30/06/2010,437042,1500.00,ELECTION CLAIMS UNIT   ,M00837,3,2010
Allerdale Borough Council,BD02,Premises related expenditure,Corporate Property,Electricity,14/06/2010,437043,649.45,BRITISH GAS  ,X00006,3,2010
Allerdale Borough Council,QF05,Capital Expenditure,Housing Act 1989 - Facilities for Disabled,To Private Individuals,09/06/2010,437047,1850.00,P B A WINDOWS LTD      ,X00190,3,2010
Allerdale Borough Council,QF05,Capital Expenditure,Housing Act 1989 - Facilities for Disabled,To Private Individuals,09/06/2010,437049,4649.50,T GLENDINNING & CO LTD        ,C00039,3,2010
Allerdale Borough Council,QF05,Capital Expenditure,Housing Act 1989 - Facilities for Disabled,To Private Individuals,09/06/2010,437050,2980.00,TOP NOTCH              ,X00165,3,2010
Allerdale Borough Council,QF05,Capital Expenditure,Housing Act 1989 - Facilities for Disabled,To Private Individuals,09/06/2010,437051,3990.00,DOLPHIN STAIRLIFTS CUMB,X00107,3,2010
Allerdale Borough Council,QF05,Capital Expenditure,Housing Act 1989 - Facilities for Disabled,To Private Individuals,09/06/2010,437053,3965.00,FREELIFT LTD           ,X00166,3,2010
Allerdale Borough Council,QF05,Capital Expenditure,Housing Act 1989 - Facilities for Disabled,To Private Individuals,09/06/2010,437054,2793.86,PARTNERSHIP IN PROP MGM,X00120,3,2010
Allerdale Borough Council,IB05,Income,Mayors Charity,Contribution from The Public,09/06/2010,437056,3000.00,GRAHAM FULFORD CHARITABLE FUND,M00792,3,2010
Allerdale Borough Council,QF05,Capital Expenditure,Housing Act 1989 - Facilities for Disabled,To Private Individuals,09/06/2010,437058,7700.00,GMC QULAITY HOMES LIMIT,X00186,3,2010
Allerdale Borough Council,QF05,Capital Expenditure,Housing Act 1989 - Facilities for Disabled,To Private Individuals,09/06/2010,437059,2437.56,Redacted information - included personal information ,M00154,3,2010
Allerdale Borough Council,EA14,Third Party Payments,Trade Waste,Other Local Authorities,23/06/2010,437062,83847.72,CUMBRIA COUNTY COUNCIL        ,A01124,3,2010
Allerdale Borough Council,DE06,Supplies and Services,Legal Services - Pay Groups,Professional Services,16/06/2010,437519,8130.00,CUMBRIA COUNTY - GENERAL A/C  ,A00066,3,2010
Allerdale Borough Council,BD05,Premises related expenditure,Homelessness,Rentals and Lease Charges,16/06/2010,437520,851.06,Redacted information - included personal information ,A00009,3,2010
Allerdale Borough Council,DE01,Supplies and Services,Environmental Health - Pay Groups,Consultants Fees,30/06/2010,437523,2424.51,Redacted information - included personal information ,A00223,3,2010
Allerdale Borough Council,BC01,Premises related expenditure,Crime Prevention,Security,30/06/2010,437525,21660.00,ADT FIRE & SECURITY PLC       ,C00035,3,2010
Allerdale Borough Council,DE01,Supplies and Services,Homelessness,Consultants Fees,23/06/2010,437527,918.75,MORGAN HUNT PUBLIC SECTOR LTD ,A00725,3,2010
Allerdale Borough Council,DK99,Supplies and Services,Leisure - Arts Development,Promotions General,16/06/2010,437529,2000.00,THEATRE BY THE LAKE           ,A00581,3,2010
Allerdale Borough Council,DE99,Supplies and Services,Planning Policy,Other Fees,16/06/2010,437534,4930.00,TULLIE HOUE MUSEUM            ,A01238,3,2010
Allerdale Borough Council,EA17,Third Party Payments,Economic Regeneration,Other Agencies,16/06/2010,437549,8333.00,HARVEST HOUSING GROUP LTD     ,A00729,3,2010
Allerdale Borough Council,EA17,Third Party Payments,Community Investment,Other Agencies,23/07/2010,437556,30000.00,CUMBRIA COMMUNITY FOUND,M00144,3,2010
Allerdale Borough Council,DH11,Supplies and Services,Shared IT,Software Maintenance,30/06/2010,437560,2831.64,MIDLAND SOFTWARE LTD          ,A00296,3,2010
Allerdale Borough Council,BD08,Premises related expenditure,Corporate Property,Water & Sewage,16/06/2010,437564,894.97,UNITED UTILITIES,X00011,3,2010
Allerdale Borough Council,AD01,Employee related expenditure,Benefits,Agency Staff Costs,30/06/2010,437568,1103.71,EDEN BROWN                    ,C00050,3,2010
Allerdale Borough Council,DA01,Supplies and Services,Corporate Property,Equipment Costs,16/06/2010,437573,1039.98,OYEZSTRAKER OFFICE SUPPLIES   ,A00142,3,2010
Allerdale Borough Council,DH11,Supplies and Services,Shared IT,Software Maintenance,30/06/2010,437574,6000.00,CAPITA BUSINESS SERVICES LTD  ,A01264,3,2010
Allerdale Borough Council,CB01,Transport related expenditure,Maryport Harbour - Support for Regeneration,Public Transport,16/06/2010,437575,20000.00,MARYPORT DEVELOPMENTS LTD     ,A00186,3,2010
Allerdale Borough Council,DE08,Supplies and Services,Offstreet - Owned,Subscriptions,16/06/2010,437577,725.00,BRITISH PARKING ASSOCIATION   ,A00468,3,2010
Allerdale Borough Council,DH10,Supplies and Services,Shared IT,Software Licences,30/06/2010,437585,81734.33,PHOENIX SOFTWARE LTD          ,A00229,3,2010
Allerdale Borough Council,EA01,Third Party Payments,Recycling,Cleansing,23/06/2010,437586,790.50,Redacted information - included personal information ,C00023,3,2010
Allerdale Borough Council,EA04,Third Party Payments,Recycling,Horticulture,23/06/2010,437587,994.50,Redacted information - included personal information ,C00023,3,2010
Allerdale Borough Council,DA03,Supplies and Services,ES - Public Convenience Cleaning,Purchase of Materials,16/06/2010,437589,1058.06,INSTOCK (CHANDLERS)           ,A00050,3,2010
Allerdale Borough Council,AD01,Employee related expenditure,Benefits,Agency Staff Costs,30/06/2010,437591,999.00,EDEN BROWN                    ,C00050,3,2010
Allerdale Borough Council,DA01,Supplies and Services,Trade Waste,Equipment Costs,30/06/2010,437592,904.00,CRAEMER UK LTD                ,A01016,3,2010
Allerdale Borough Council,EA17,Third Party Payments,LABGI Funded Projects,Other Agencies,07/07/2010,437594,1890.89,CUMBRIA COUNTY COUNCIL        ,A00920,3,2010
Allerdale Borough Council,DE06,Supplies and Services,Animal Welfare,Professional Services,16/06/2010,437596,525.00,MILLCROFT VETERINARY GROUP    ,A00211,3,2010
Allerdale Borough Council,EA01,Third Party Payments,ES - Street Cleansing,Cleansing,16/06/2010,437598,49231.84,FOCSA SERVICES (UK) LTD       ,A00085,3,2010
Allerdale Borough Council,EA04,Third Party Payments,Recycling,Horticulture,16/06/2010,437602,2178.54,WASTE RECYCLING LTD T/A ALCO  ,A00185,3,2010
Allerdale Borough Council,EA04,Third Party Payments,Recycling,Horticulture,16/06/2010,437605,7795.89,D A HARRISON LTD                 ,A00264,3,2010
Allerdale Borough Council,EA04,Third Party Payments,Recycling,Horticulture,16/06/2010,437606,3400.00,D A HARRISON LTD                 ,A00264,3,2010
Allerdale Borough Council,BD02,Premises related expenditure,Corporate Property,Electricity,09/07/2010,437607,2810.53,EDF ENERGY ,X00007,3,2010
Allerdale Borough Council,BB01,Premises related expenditure,Homelessness,Internal Maintenance,16/06/2010,437608,857.36,DERWENT & SOLWAY HOUSING ASSOC ,A00219,3,2010
Allerdale Borough Council,AE01,Employee related expenditure,Corporate Recruitment,Advertising vacancies,16/06/2010,437610,560.67,CUMBRIA CC - 3C STUDIO ONLY   ,A00070,3,2010
Allerdale Borough Council,DJ03,Supplies and Services,Customer Contact Centre - Pay Groups,Collection Services,30/06/2010,437611,1490.35,SECURITY PLUS + LIMITED       ,A00503,3,2010
Allerdale Borough Council,BD02,Premises related expenditure,Street & Footway Maintenance,Electricity,16/06/2010,437613,3843.60,EDF ENERGY ,X00019,3,2010
Allerdale Borough Council,BD02,Premises related expenditure,Corporate Property,Electricity,16/06/2010,437617,1882.67,EON     ,X00017,3,2010
Allerdale Borough Council,DE06,Supplies and Services,Animal Welfare,Professional Services,16/06/2010,437618,525.00,MILLCROFT VETERINARY GROUP    ,A00211,3,2010
Allerdale Borough Council,BD05,Premises related expenditure,Homelessness,Rentals and Lease Charges,16/06/2010,437620,953.55,HOME GROUP LTD                ,A00423,3,2010
Allerdale Borough Council,BD05,Premises related expenditure,Homelessness,Rentals and Lease Charges,16/06/2010,437621,1084.20,HOME GROUP LTD                ,A00423,3,2010
Allerdale Borough Council,BA03,Premises related expenditure,Coastal Protection and Inland Flooding,Grounds,16/06/2010,437626,3550.00,CAPITA SYMONDS                ,A00775,3,2010
Allerdale Borough Council,DE14,Supplies and Services,Mayor's Fund,Public Entertaiment,16/06/2010,437627,765.96,CARLISLE LEISURE LTD          ,A00136,3,2010
Allerdale Borough Council,QF05,Capital Expenditure,Housing Act 1989 - Facilities for Disabled,To Private Individuals,16/06/2010,437628,2940.00,TOP NOTCH              ,X00165,3,2010
Allerdale Borough Council,QF05,Capital Expenditure,Housing Act 1989 ,To Private Individuals,16/06/2010,437629,523.25,GARY CLAGUE PLASTERING ,X00191,3,2010
Allerdale Borough Council,XB01,Holding and Control Accounts,Derwent and Solway,Control Accounts General,09/07/2010,437630,8401.22,DERWENT & SOLWAY HOUSING ASSO ,A00219,3,2010
Allerdale Borough Council,XB01,Holding and Control Accounts,Derwent and Solway,Control Accounts General,09/07/2010,437631,9373.57,DERWENT & SOLWAY HOUSING ASSO ,A00219,3,2010
Allerdale Borough Council,BA01,Premises related expenditure,Derwent Forest - Leases,External Maintenance & Decoration,16/06/2010,437640,20078.03,ELITE ENVIRONMENTAL (UK) LTD  ,A01114,3,2010
Allerdale Borough Council,AD01,Employee related expenditure,Benefits,Agency Staff Costs,30/06/2010,437644,999.00,EDEN BROWN                    ,C00050,3,2010
Allerdale Borough Council,EA04,Third Party Payments,Recycling,Horticulture,16/06/2010,437645,2088.38,WASTE RECYCLING LTD T/A ALCO  ,A00185,3,2010
Allerdale Borough Council,EA99,Third Party Payments,Street & Footway Maintenance,General,16/06/2010,437657,1265.16,AMEY LG LTD                   ,C00081,3,2010
Allerdale Borough Council,DH11,Supplies and Services,Shared IT,Software Maintenance,16/06/2010,437662,755.00,NCC SERVICES LTD              ,A00933,3,2010
Allerdale Borough Council,DH13,Supplies and Services,Shared IT,Software Miscellaneous ,16/06/2010,437663,2000.00,TAMESIDE METROPOLITAN BOROUGH ,A00231,3,2010
Allerdale Borough Council,DH02,Supplies and Services,Shared IT,Hardware Maintenance,07/07/2010,437665,20298.15,NETCENTRIX LIMITED            ,A00106,3,2010
Allerdale Borough Council,DH02,Supplies and Services,IT Provision,Hardware Maintenance,07/07/2010,437666,33564.00,NETCENTRIX LIMITED            ,A00106,3,2010
Allerdale Borough Council,DH11,Supplies and Services,Shared IT,Software Maintenance,07/07/2010,437667,18828.00,NETCENTRIX LIMITED            ,A00106,3,2010
Allerdale Borough Council,DK99,Supplies and Services,Sports Development,Promotions General,16/06/2010,437672,4440.00,HEALTH2FITNESS LTD            ,A01235,3,2010
Allerdale Borough Council,DK99,Supplies and Services,Sports Development,Promotions General,16/06/2010,437687,2430.00,HEALTH2FITNESS LTD            ,A01235,3,2010
Allerdale Borough Council,BD09,Premises related expenditure,Insurances,Buildings and Contents Insurance,16/06/2010,437688,525.00,ZURICH MUNICIPAL              ,A00429,3,2010
Allerdale Borough Council,BD09,Premises related expenditure,Insurances,Buildings and Contents Insurance,16/06/2010,437689,71982.69,ZURICH MUNICIPAL              ,A00429,3,2010
Allerdale Borough Council,BD02,Premises related expenditure,Corporate Property,Electricity,16/06/2010,437693,1880.73,BIZZ ENERGY LIMITED           ,BIZZBIZZ,3,2010
Allerdale Borough Council,DE01,Supplies and Services,Customer Contact Centre,Consultants Fees,16/06/2010,437694,795.00,DIGITERATI LTD                ,A00883,3,2010
Allerdale Borough Council,BD05,Premises related expenditure,Parking Services - Multi-storey,Rentals and Lease Charges,23/06/2010,437695,54000.00,RIDDELLTPS                    ,A00824,3,2010
Allerdale Borough Council,BC01,Premises related expenditure,Crime Prevention,Security,23/06/2010,437697,3000.00,ADT FIRE & SECURITY PLC       ,C00035,3,2010
Allerdale Borough Council,BC01,Premises related expenditure,Crime Prevention,Security,23/06/2010,437698,11760.00,ADT FIRE & SECURITY PLC       ,C00035,3,2010
Allerdale Borough Council,DF03,Supplies and Services,Document Management - Pay Groups,Franking Machine Costs other,16/06/2010,437699,7692.55,FP TELESET                    ,A00428,3,2010
Allerdale Borough Council,QF05,Capital Expenditure,Housing Act 1989 - Facilities for Disabled,To Private Individuals,16/06/2010,437702,5008.00,T ARMSTRONG - CONSTRUCTION    ,C00003,3,2010
Allerdale Borough Council,QF05,Capital Expenditure,Housing Act 1989 ,To Private Individuals,16/06/2010,437704,5854.05,BROWN & ARMSTRONG LTD         ,C00043,3,2010
Allerdale Borough Council,QF04,Capital Expenditure,T.H.I.,To Private Individuals - General,16/06/2010,437706,11529.05,Redacted information - included personal information ,X00187,3,2010
Allerdale Borough Council,QF05,Capital Expenditure,Housing Act 1989 ,To Private Individuals,16/06/2010,437708,4700.00,SLATES AND LADDERS     ,X00179,3,2010
Allerdale Borough Council,FA01,Transfer Payments,LABGI Funded Projects,Private Individuals,16/06/2010,437710,584.57,Redacted information - included personal information ,M00846,3,2010
Allerdale Borough Council,QF05,Capital Expenditure,Housing Act 1989 - Facilities for Disabled,To Private Individuals,16/06/2010,437716,3071.00,J & S WILKINSON LTD    ,X00192,3,2010
Allerdale Borough Council,BB01,Premises related expenditure,Homelessness,Internal Maintenance,16/06/2010,437721,890.00,Redacted information - included personal information ,C00102,3,2010
Allerdale Borough Council,DE08,Supplies and Services,Environmental Health - Pay Groups,Subscriptions,23/06/2010,438286,1050.00,CHART INST OF ENVIRO HEALTH   ,A00035,3,2010
Allerdale Borough Council,EA99,Third Party Payments,Parking Services - Multi-storey,General,30/06/2010,438288,42844.68,PARKSAFE                      ,A00647,3,2010
Allerdale Borough Council,BA01,Premises related expenditure,Corporate Property,External Maintenance & Decoration,23/06/2010,438315,885.00,BHS CONSTRUCTION SERVICES LTD ,C00066,3,2010
Allerdale Borough Council,BA01,Premises related expenditure,Corporate Property,External Maintenance & Decoration,23/06/2010,438319,2970.00,FIRTH FABRICATION SERVICES    ,C00020,3,2010
Allerdale Borough Council,BD02,Premises related expenditure,Corporate Property,Electricity,23/06/2010,438322,1355.98,EON     ,X00017,3,2010
Allerdale Borough Council,DA02,Supplies and Services,Shared IT,Equipment Repair & Maintenance,23/06/2010,438330,1245.59,FASTEK CONSULTANCY LIMITED    ,A00843,3,2010
Allerdale Borough Council,DE01,Supplies and Services,Homelessness,Consultants Fees,30/06/2010,438331,918.75,MORGAN HUNT PUBLIC SECTOR LTD ,A00725,3,2010
Allerdale Borough Council,DH11,Supplies and Services,Shared IT,Software Maintenance,23/06/2010,438342,81326.00,COMPUTERCENTER (UK) LTD       ,A01198,3,2010
Allerdale Borough Council,DH12,Supplies and Services,New Technology Fund,Software Development,23/06/2010,438343,50992.84,COMPUTERCENTER (UK) LTD       ,A01198,3,2010
Allerdale Borough Council,EA04,Third Party Payments,Recycling,Horticulture,23/06/2010,438345,994.50,Redacted information - included personal information ,C00023,3,2010
Allerdale Borough Council,DK01,Supplies and Services,Planning and Development ,Statutory Notices,23/06/2010,438346,1587.15,CUMBRIA CC - 3C STUDIO ONLY   ,A00070,3,2010
Allerdale Borough Council,DE99,Supplies and Services,Out of Hours Telephones,Other Fees,30/06/2010,438349,541.50,ORBIS MONITORING SERVICES     ,A00679,3,2010
Allerdale Borough Council,AD01,Employee related expenditure,Benefits,Agency Staff Costs,07/07/2010,438353,1103.71,EDEN BROWN                    ,C00050,3,2010
Allerdale Borough Council,DH11,Supplies and Services,Shared IT,Software Maintenance,23/06/2010,438356,10168.00,CAPITA BUSINESS SERVICES LTD  ,A01264,3,2010
Allerdale Borough Council,DH11,Supplies and Services,Shared IT,Software Maintenance,23/06/2010,438357,4000.00,PREMIER ENVOY LTD             ,A01258,3,2010
Allerdale Borough Council,DH03,Supplies and Services,Shared IT,Hardware Purchase,07/07/2010,438361,1338.13,QUANTIX                       ,A00195,3,2010
Allerdale Borough Council,DE08,Supplies and Services,Internal Audit - Pay Groups,Subscriptions,23/06/2010,438366,1703.58,TAMESIDE METROPOLITAN BOROUGH ,A00231,3,2010
Allerdale Borough Council,EA01,Third Party Payments,ES - Street Cleansing,Cleansing,23/06/2010,438375,49231.84,FOCSA SERVICES (UK) LTD       ,A00085,3,2010
Allerdale Borough Council,FB06,Transfer Payments,Concesionary Travel,Concessionary Travel,30/06/2010,438376,10412.29,LANCASHIRE COUNTY COUNCIL     ,A00504,3,2010
Allerdale Borough Council,FB06,Transfer Payments,Concesionary Travel,Concessionary Travel,30/06/2010,438377,127013.41,LANCASHIRE COUNTY COUNCIL     ,A00504,3,2010
Allerdale Borough Council,EA10,Third Party Payments,Finance and Accounting,Audit Commission,07/07/2010,438378,8975.00,AUDIT COMMISSION              ,A00002,3,2010
Allerdale Borough Council,EA01,Third Party Payments,ES - Street Cleansing,Cleansing,23/06/2010,438382,688.84,FOCSA SERVICES (UK) LTD       ,A00085,3,2010
Allerdale Borough Council,AF01,Employee related expenditure,Training,External Courses & Seminar Fees,30/06/2010,438383,1061.06,HSBC CARD SERVICES     ,X00000,3,2010
Allerdale Borough Council,BD05,Premises related expenditure,Homelessness,Rentals and Lease Charges,30/06/2010,438388,560.00,Redacted information - included personal information ,A00278,3,2010
Allerdale Borough Council,DE08,Supplies and Services,AONB Silloth,Subscriptions,23/06/2010,438393,600.00,NAAONB                        ,A00735,3,2010
Allerdale Borough Council,BD05,Premises related expenditure,Homelessness,Rentals and Lease Charges,23/06/2010,438396,595.74,Redacted information - included personal information ,A00009,3,2010
Allerdale Borough Council,CB02,Transport related expenditure,Recycling,Hire Car and petrol,23/06/2010,438398,1693.69,SCOTTS HAULAGE                ,A00266,3,2010
Allerdale Borough Council,DE01,Supplies and Services,Homelessness,Consultants Fees,07/07/2010,438404,918.75,MORGAN HUNT PUBLIC SECTOR LTD ,A00725,3,2010
Allerdale Borough Council,DK99,Supplies and Services,Leisure - Sports & Leisure Centres,Promotions General,30/06/2010,438406,750.00,ASPATRIA & DIST SWIM POOL COMM,A00564,3,2010
Allerdale Borough Council,DH11,Supplies and Services,Shared IT,Software Maintenance,14/07/2010,438409,2690.00,CAPITA BUSINESS SERVICES LTD  ,A01264,3,2010
Allerdale Borough Council,BB01,Premises related expenditure,Homelessness,Internal Maintenance,23/06/2010,438411,990.00,Redacted information - included personal information ,C00102,3,2010
Allerdale Borough Council,DH02,Supplies and Services,Shared IT,Hardware Maintenance,23/06/2010,438414,527.68,VISTORM LTD                   ,A01227,3,2010
Allerdale Borough Council,DK99,Supplies and Services,AONB Silloth,Promotions General,23/06/2010,438420,500.00,SILLOTH TOURISM ACTION ,M00367,3,2010
Allerdale Borough Council,DK99,Supplies and Services,AONB Silloth,Promotions General,23/06/2010,438421,500.00,SILLOTH BEER FESTIVAL  ,M00248,3,2010
Allerdale Borough Council,QF05,Capital Expenditure,Housing Act 1989 - Facilities for Disabled,To Private Individuals,23/06/2010,438423,1090.00,FEARON BUILDERS               ,C00069,3,2010
Allerdale Borough Council,XB01,Holding and Control Accounts,Derwent and Solway,Control Accounts General,09/07/2010,438430,8086.41,DERWENT & SOLWAY HOUSING ASSO ,A00219,3,2010
Allerdale Borough Council,DE01,Supplies and Services,Derwent Valley Project,Consultants Fees,23/06/2010,438431,925.00,BURNETTS SOLICITORS           ,A00129,3,2010
Allerdale Borough Council,DF03,Supplies and Services,Document Management - Pay Groups,Franking Machine Costs other,23/06/2010,438432,2888.00,CF ASSET FINANCE              ,A00904,3,2010
Allerdale Borough Council,QD01,Capital Expenditure,Sports Centre Various Capital Works,Architects Fees,23/06/2010,438433,1880.00,DYA CUMMINS LIMITED           ,A00131,3,2010
Allerdale Borough Council,DF01,Supplies and Services,Revenue,Postage,23/06/2010,438435,1183.10,ROYAL MAIL LETTERS     ,X00021,3,2010
Allerdale Borough Council,DE01,Supplies and Services,Finance and Accounting,Consultants Fees,23/06/2010,438437,10668.34,Redacted information - included personal information ,A00284,3,2010
Allerdale Borough Council,QF05,Capital Expenditure,Housing Act 1989 - Facilities for Disabled,To Private Individuals,30/06/2010,438906,3580.00,ROBERT SCOTT LTD       ,X00160,3,2010
Allerdale Borough Council,EA04,Third Party Payments,Recycling,Horticulture,30/06/2010,438910,773.60,THOMPSONS PLANT HIRE LTD      ,A00262,3,2010
Allerdale Borough Council,EA04,Third Party Payments,Recycling,Horticulture,30/06/2010,438911,1917.60,THOMPSONS PLANT HIRE LTD      ,A00262,3,2010
Allerdale Borough Council,EA04,Third Party Payments,Recycling,Horticulture,30/06/2010,438912,4010.40,THOMPSONS PLANT HIRE LTD      ,A00262,3,2010
Allerdale Borough Council,DA02,Supplies and Services,Offstreet - Owned,Equipment Repair & Maintenance,30/06/2010,438914,2216.16,SCAN COIN LIMITED             ,A00466,3,2010
Allerdale Borough Council,DH10,Supplies and Services,Shared IT,Software Licences,09/07/2010,438915,1313.00,HOPEWISER LTD                 ,A00233,3,2010
Allerdale Borough Council,EA04,Third Party Payments,Recycling,Horticulture,30/06/2010,438916,4142.40,THOMPSONS PLANT HIRE LTD      ,A00262,3,2010
Allerdale Borough Council,EA04,Third Party Payments,Recycling,Horticulture,30/06/2010,438917,2226.40,THOMPSONS PLANT HIRE LTD      ,A00262,3,2010
Allerdale Borough Council,DE14,Supplies and Services,Leisure - Carnegie Theatre,Public Entertaiment,30/06/2010,438918,987.00,WORKINGTON PLAYGOERS   ,M00053,3,2010
Allerdale Borough Council,DD01,Supplies and Services,Shared IT,General stationery,07/07/2010,438924,853.60,ROSEFOX PAPER LTD             ,A00101,3,2010
Allerdale Borough Council,BD09,Premises related expenditure,Insurances,Buildings and Contents Insurance,14/07/2010,438925,776.72,MARSH LTD                     ,A00435,3,2010
Allerdale Borough Council,BA03,Premises related expenditure,Coastal Protection and Inland Flooding,Grounds,30/06/2010,438929,588.00,IAN WILSON HAULAGE LIMITED    ,A01278,3,2010
Allerdale Borough Council,DH11,Supplies and Services,Shared IT,Software Maintenance,21/07/2010,438930,1300.00,NORTHGATE MANAGED SERVICES    ,A00849,3,2010
Allerdale Borough Council,EA17,Third Party Payments,Sports Development,Other Agencies,30/06/2010,438932,2000.00,COCKERMOUTH TOWN COUNCIL      ,A00586,3,2010
Allerdale Borough Council,BD05,Premises related expenditure,Offstreet - Owned,Rentals and Lease Charges,07/07/2010,438933,5737.00,NATIONAL GRID PROPERTY LTD    ,A00645,3,2010
Allerdale Borough Council,DH11,Supplies and Services,Shared IT,Software Maintenance,30/06/2010,438935,735.00,I&DEA                         ,A00484,3,2010
Allerdale Borough Council,DE99,Supplies and Services,LABGI Funded Projects,Other Fees,30/06/2010,438936,3250.00,THE ALLIANCE                  ,A00613,3,2010
Allerdale Borough Council,BC01,Premises related expenditure,Corporate Property,Security,30/06/2010,438940,1117.00,PRO-TEC SYSTEMS               ,C00026,3,2010
Allerdale Borough Council,XC02,Holding and Control Accounts,Capital Project Retentions,Holding Accounts General - Expenditure,30/06/2010,438943,19999.61,T ARMSTRONG - CONSTRUCTION    ,C00003,3,2010
Allerdale Borough Council,AE01,Employee related expenditure,Human Resources - Pay Groups,Advertising vacancies,30/06/2010,438948,2604.50,CUMBRIA CC - 3C STUDIO ONLY   ,A00070,3,2010
Allerdale Borough Council,DE01,Supplies and Services,Corporate Improvement,Consultants Fees,30/06/2010,438977,6000.00,CUMBRIA CC - ORGANIS & DEVELOP,A00285,3,2010
Allerdale Borough Council,EA04,Third Party Payments,Recycling,Horticulture,30/06/2010,438979,2905.21,WASTE RECYCLING LTD T/A ALCO  ,A00185,3,2010
Allerdale Borough Council,DE08,Supplies and Services,Environmental Initiative,Subscriptions,14/07/2010,438980,4499.00,KEEP BRITAIN TIDY             ,A01034,3,2010
Allerdale Borough Council,AD01,Employee related expenditure,Benefits,Agency Staff Costs,14/07/2010,438981,1080.00,EDEN BROWN                    ,C00050,3,2010
Allerdale Borough Council,AD01,Employee related expenditure,Benefits,Agency Staff Costs,14/07/2010,438982,1103.71,EDEN BROWN                    ,C00050,3,2010
Allerdale Borough Council,EA04,Third Party Payments,Recycling,Horticulture,30/06/2010,438986,893.60,THOMPSONS PLANT HIRE LTD      ,A00262,3,2010
Allerdale Borough Council,EA04,Third Party Payments,Recycling,Horticulture,30/06/2010,438988,3864.80,THOMPSONS PLANT HIRE LTD      ,A00262,3,2010
Allerdale Borough Council,EA01,Third Party Payments,Recycling,Cleansing,30/06/2010,438989,3649.50,THOMPSONS PLANT HIRE LTD      ,A00262,3,2010
Allerdale Borough Council,DH12,Supplies and Services,New Technology Fund,Software Development,21/07/2010,438991,2580.00,ESRI (UK) LTD                 ,A01241,3,2010
Allerdale Borough Council,AD01,Employee related expenditure,Benefits,Agency Staff Costs,07/07/2010,438994,1053.00,EDEN BROWN                    ,C00050,3,2010
Allerdale Borough Council,BD08,Premises related expenditure,Corporate Property,Water & Sewage,30/06/2010,438995,757.18,UNITED UTILITIES,X00011,3,2010
Allerdale Borough Council,BD02,Premises related expenditure,Corporate Property,Electricity,30/06/2010,438996,757.89,EON   ,X00016,3,2010
Allerdale Borough Council,BD03,Premises related expenditure,Corporate Property,Gas,09/07/2010,439003,744.77,CORONA ENERGY - DIRECT ,X00003,3,2010
Allerdale Borough Council,BD03,Premises related expenditure,Corporate Property,Gas,09/07/2010,439004,509.24,CORONA ENERGY - DIRECT ,X00003,3,2010
Allerdale Borough Council,BD03,Premises related expenditure,Corporate Property,Gas,09/07/2010,439005,539.88,CORONA ENERGY - DIRECT ,X00003,3,2010
Allerdale Borough Council,AD01,Employee related expenditure,Benefits,Agency Staff Costs,07/07/2010,439009,972.00,EDEN BROWN                    ,C00050,3,2010
Allerdale Borough Council,EA10,Third Party Payments,Finance and Accounting,Audit Commission,14/07/2010,439010,570.00,AUDIT COMMISSION              ,A00002,3,2010
Allerdale Borough Council,AD01,Employee related expenditure,Benefits,Agency Staff Costs,14/07/2010,439011,999.00,EDEN BROWN                    ,C00050,3,2010
Allerdale Borough Council,DK01,Supplies and Services,Planning and Development ,Statutory Notices,30/06/2010,439012,1862.03,CUMBRIA CC - 3C STUDIO ONLY   ,A00070,3,2010
Allerdale Borough Council,AE01,Employee related expenditure,Human Resources - Pay Groups,Advertising vacancies,30/06/2010,439013,3519.00,CUMBRIA CC - 3C STUDIO ONLY   ,A00070,3,2010
Allerdale Borough Council,BD05,Premises related expenditure,Homelessness,Rentals and Lease Charges,30/06/2010,439014,595.74,Redacted information - included personal information ,A00009,3,2010
Allerdale Borough Council,BC09,Premises related expenditure,Corporate Property,Fire and Safety,30/06/2010,439016,517.75,PRO-TEC SYSTEMS               ,C00026,3,2010
Allerdale Borough Council,DH11,Supplies and Services,Shared IT,Software Maintenance,21/07/2010,439017,23998.43,ROSS SYSTEMS (UK) LTD         ,A00147,3,2010
Allerdale Borough Council,DH11,Supplies and Services,Shared IT,Software Maintenance,21/07/2010,439018,815.00,SATISNET                      ,A01273,3,2010
Allerdale Borough Council,QC01,Capital Expenditure,Car Parks,External Contractor Payments,07/07/2010,439019,62789.30,T ARMSTRONG - CONSTRUCTION    ,C00003,3,2010
Allerdale Borough Council,BA01,Premises related expenditure,Corporate Property,External Maintenance & Decoration,07/07/2010,439020,14555.34,T ARMSTRONG - CONSTRUCTION    ,C00003,3,2010
Allerdale Borough Council,QC01,Capital Expenditure,Derwentside Renewal Works,External Contractor Payments,30/06/2010,439021,900.00,A L DAINES & PARTNERS         ,A00081,3,2010
Allerdale Borough Council,DH11,Supplies and Services,Shared IT,Software Maintenance,21/07/2010,439025,5582.71,MIDLAND SOFTWARE LTD          ,A00296,3,2010
Allerdale Borough Council,EA17,Third Party Payments,Sports Development,Other Agencies,30/06/2010,439026,7170.00,ISS WATERERS LANDSCAPE        ,C00044,3,2010
Allerdale Borough Council,DH10,Supplies and Services,Shared IT,Software Licences,14/07/2010,439028,3750.00,ORDNANCE SURVEY               ,A00105,3,2010
Allerdale Borough Council,DH08,Supplies and Services,Document Management - Pay Groups,Computer Consumables,21/07/2010,439029,506.07,INSIGHT DIRECT (UK) LTD       ,A00054,3,2010
Allerdale Borough Council,DH10,Supplies and Services,Shared IT,Software Licences,21/07/2010,439030,550.00,MET OFFICE                    ,A00226,3,2010
Allerdale Borough Council,XB01,Holding and Control Accounts,Workington Post Office,Control Accounts General,30/06/2010,439032,3000.00,Redacted information - included personal information ,A00915,3,2010
Allerdale Borough Council,DK99,Supplies and Services,AONB Silloth,Promotions General,30/06/2010,439037,2500.00,WEST CUMBRIA ARCH SOCIETY,M00861,3,2010
Allerdale Borough Council,DE03,Supplies and Services,Revenue,Court and Tribunal Costs,30/06/2010,439048,3780.00,HMCS                          ,A00275,3,2010
Allerdale Borough Council,DE06,Supplies and Services,Transformation,Professional Services,30/06/2010,439056,4400.00,LAKES HR LTD                  ,A01067,3,2010
Allerdale Borough Council,DE06,Supplies and Services,Transformation,Professional Services,30/06/2010,439057,3960.00,LAKES HR LTD                  ,A01067,3,2010
Allerdale Borough Council,DE01,Supplies and Services,Transformation,Consultants Fees,30/06/2010,439058,3088.80,NORTH WEST EMPLOYERS          ,A00139,3,2010
Allerdale Borough Council,DE01,Supplies and Services,Transformation,Consultants Fees,30/06/2010,439059,3240.59,NORTH WEST EMPLOYERS          ,A00139,3,2010
Allerdale Borough Council,EA99,Third Party Payments,Street & Footway Maintenance,General,07/07/2010,439060,860.50,J & J ELECTRICAL (CUMBRIA) LTD,C00038,3,2010
